Workbook

Sheet C(1)
A1: Funding for City | B1: Amount
A2: Sales Tax | B2: 133947
A3: Income Tax | B3: 179193
A4: Property Tax | B4: 102512.5
A5: Other | B5: 98847.5
A6: Total | B6: =SUM(B2:B5) -> 514500

Sheet C(2)
A1: Into The Wind Sales
B2: Jan | C2: Feb | D2: Mar | E2: Total
A3: Toys | B3: 500 | C3: 2150 | D3: 8893 | E3: =SUM(B3:D3) -> 11543
A4: Boomerangs | B4: 4000 | C4: 6933 | D4: 9545 | E4: =SUM(B4:D4) -> 20478
A5: Kites | B5: 9721 | C5: 5367 | D5: 15064 | E5: =SUM(B5:D5) -> 30152
A6: Total | B6: =SUM(B3:B5) -> 14221 | C6: =SUM(C3:C5) -> 14450 | D6: =SUM(D3:D5) -> 33502 | E6: =SUM(B6:D6) -> 62173

Sheet C(3)
F1: Histogram For Class Scores | R1: Assumptions
A2: Test Scores | C2: Lower | D2: Upper | F2: Grouped Number Categories | G2: How Many Students Got A Score In Each Category | R2: Start | S2: Range
A3: 81.75 | C3: =R3 -> 0 | D3: =C3+$S$3 -> 10 | F3: =IF(C3=0,"00",C3)&" up to "&D3 -> 00 up to 10 | R3: 0 | S3: 10
A4: 33 | C4: =D3 -> 10 | D4: 20 | F4: =IF(C4=0,"00",C4)&" up to "&D4 -> 10 up to 20
A5: 76 | C5: =D4 -> 20 | D5: 30 | F5: 20 up to 30
A6: 38.5 | C6: 30 | D6: 40 | F6: 30 up to 40
A7: 98 | C7: 40 | D7: 50 | F7: 40 up to 50
A8: 84.5 | C8: 50 | D8: 60 | F8: 50 up to 60
A9: 72 | C9: 60 | D9: 70 | F9: 60 up to 70
A10: 89.75 | C10: 70 | D10: 80 | F10: 70 up to 80
A11: 99 | C11: 80 | D11: 90 | F11: 80 up to 90
A12: 78 | C12: 90 | D12: 100 | F12: 90 up to 100
A13: 47.75
A14: 58 | F14: Min | G14: =MIN($A$3:$A$97) -> 1.25
A15: 53.75 | F15: Max | G15: =MAX($A$3:$A$97) -> 99.5
A16: 55
A17: 4.5
A18: 75
A19: 73.75
A20: 80.75
A21: 67
A22: 36.25
A23: 38
A24: 42
A25: 68.25
A26: 73.5
A27: 68
A28: 84.25
A29: 56
A30: 61.75
A31: 36.5
A32: 63.5
A33: 78
A34: 81
A35: 67.25
A36: 93.25
A37: 62.5
A38: 41.75
A39: 80.25
A40: 47
A41: 91.5
A42: 52.75 | C42: check | D42: check
A43: 2 | C43: Frequency | D43: Frequency
A44: 88.25 | C44: =COUNTIF($A$3:$A$97,"<"&D3)-COUNTIF($A$3:$A$97,"<"&C3) -> 5 | D44: =SUMPRODUCT(--($A$3:$A$97>=C3),--($A$3:$A$97<D3)) -> 5
A45: 56 | C45: 1 | D45: 1
A46: 65 | C46: 0 | D46: 0
A47: 60.75 | C47: 7 | D47: 7
A48: 95.5 | C48: 8 | D48: 8
A49: 1.25 | C49: 12 | D49: 12
A50: 67.75 | C50: 20 | D50: 20
A51: 59 | C51: 15 | D51: 15
A52: 33.25 | C52: 17 | D52: 17
A53: 75 | C53: 10 | D53: 10
A54: 96.5
A55: 93.25
A56: 64.25
A57: 40.25
A58: 61
A59: 99.5
A60: 80.75
A61: 62.75
A62: 83.5
A63: 98.25
A64: 32
A65: 73
A66: 9.75
A67: 76
A68: 76
A69: 69
A70: 68.5
A71: 68
A72: 89.5
A73: 60.5
A74: 71
A75: 72
A76: 57.75
A77: 86.25
A78: 59
A79: 41.5
A80: 84.75
A81: 58
A82: 66.5
A83: 47.25
A84: 65.75
A85: 82.25
A86: 19.5
A87: 60.25
A88: 73
A89: 96.5
A90: 85
A91: 86.25
A92: 43
A93: 52.5
A94: 86.75
A95: 54
A96: 2
A97: 73.25

Sheet C(4)
A1: Into The Wind Sales
B2: Jan | C2: Feb | D2: Mar | E2: Total
A3: Toys | B3: 500 | C3: 2150 | D3: 8893 | E3: =SUM(B3:D3) -> 11543
A4: Boomerangs | B4: 4000 | C4: 6933 | D4: 9545 | E4: =SUM(B4:D4) -> 20478
A5: Kites | B5: 9721 | C5: 5367 | D5: 15064 | E5: =SUM(B5:D5) -> 30152
A6: Total | B6: =SUM(B3:B5) -> 14221 | C6: =SUM(C3:C5) -> 14450 | D6: =SUM(D3:D5) -> 33502 | E6: =SUM(B6:D6) -> 62173

Sheet C(5)
A1: ="Into The Wind Sales "&B2&" to "&I2 -> Into The Wind Sales 2005 to 2012
B2: 2005 | C2: 2006 | D2: 2007 | E2: 2008 | F2: 2009 | G2: 2010 | H2: 2011 | I2: 2012
A3: Toys | B3: 5645 | C3: 4382 | D3: 6200 | E3: 2155 | F3: 1902 | G3: 3544 | H3: 6874 | I3: 6710
A4: Boomerangs | B4: 6000 | C4: 6626 | D4: 5487 | E4: 5011 | F4: 4480 | G4: 6511 | H4: 8004 | I4: 7851
A5: Kites | B5: 23438 | C5: 20393 | D5: 24863 | E5: 9753 | F5: 10547 | G5: 9510 | H5: 12548 | I5: 21547

Sheet C(6)
A1: Do Hours Studied Predict Final Score On Test? Is there a relationship? | H1: y intercept | I1: slope | J1: correlation Coefficient | K1: Coefficient of Determination
A2: Hours Studied - X | B2: Student Scores On Final - Y | H2: Where line crosses y-axis | I2: For 1 unit out x-axis, how far up the y-axis do you go? | J2: Strength and direction of line (not causation) | K2: The amount of influence x has on y (not causation)
A3: 5 | B3: 88 | H3: b | I3: m | J3: r | K3: r^2
A4: 4 | B4: 82 | H4: =INTERCEPT($B$3:$B$40,$A$3:$A$40) -> 48.45181786 | I4: =SLOPE($B$3:$B$40,$A$3:$A$40) -> 4.834804095 | J4: =PEARSON($A$3:$A$40,$B$3:$B$40) -> 0.7815613776 | K4: =RSQ($B$3:$B$40,$A$3:$A$40) -> 0.6108381869
A5: 2 | B5: 61
A6: 4 | B6: 78
A7: 8 | B7: 81
A8: 1 | B8: 17
A9: 11 | B9: 89
A10: 11 | B10: 99
A11: 2 | B11: 46
A12: 7 | B12: 89
A13: 2 | B13: 54
A14: 5 | B14: 83
A15: 7 | B15: 84
A16: 3 | B16: 59
A17: 6 | B17: 91
A18: 5 | B18: 78
A19: 10 | B19: 100
A20: 6 | B20: 79
A21: 4 | B21: 75
A22: 6 | B22: 86
A23: 7 | B23: 85
A24: 10 | B24: 96
A25: 9 | B25: 94
A26: 4 | B26: 55
A27: 14 | B27: 97
A28: 3 | B28: 44
A29: 4 | B29: 79
A30: 6 | B30: 91
A31: 7 | B31: 93
A32: 3 | B32: 67
A33: 5 | B33: 93
A34: 10 | B34: 95
A35: 2 | B35: 41
A36: 3 | B36: 68
A37: 12 | B37: 93
A38: 4 | B38: 47
A39: 5 | B39: 75
A40: 8 | B40: 97

Sheet C(7)
A1: Units | B1: Sales | C1: Total Costs | D1: Fixed Cost | E1: Net Income
A2: =B17 -> 0 | B2: =A2*B$13 -> 0 | C2: =B2*B$15+D2 -> 171562.5 | D2: =B$16 -> 171562.5 | E2: =B2-C2 -> -171562.5
A3: =A2+B$18 -> 3500 | B3: 87500 | C3: =B3*B$15+D3 -> 219687.5 | D3: 171562.5 | E3: =B3-C3 -> -132187.5
A4: =A3+B$18 -> 7000 | B4: 175000 | C4: 267812.5 | D4: 171562.5 | E4: -92812.5
A5: 10500 | B5: 262500 | C5: 315937.5 | D5: 171562.5 | E5: -53437.5
A6: 14000 | B6: 350000 | C6: 364062.5 | D6: 171562.5 | E6: -14062.5
A7: 17500 | B7: 437500 | C7: 412187.5 | D7: 171562.5 | E7: 25312.5
A8: 21000 | B8: 525000 | C8: 460312.5 | D8: 171562.5 | E8: 64687.5
A9: 24500 | B9: 612500 | C9: 508437.5 | D9: 171562.5 | E9: 104062.5
A10: 28000 | B10: 700000 | C10: 556562.5 | D10: 171562.5 | E10: 143437.5
A12: Assumptions Tables
A13: Sell Price of Boomerang | B13: 25
A14: Units Sold | B14: 15250
A15: Manufacturing Cost of Boomerang as a % of Sell Price | B15: 0.55
A16: Total Fixed Cost for Rest Of Operations | B16: =(B13*B14)*(1-B15) -> 171562.5
A17: Table Start Unit Number | B17: 0
A18: Table Unit Increment | B18: 3500

Sheet C(8)
A1: Month | B1: Sales | C1: Expenses
A2: Jan | B2: 100 | C2: 75
A3: Feb | B3: 150 | C3: 105
A4: Mar | B4: 210 | C4: 150
A5: Apr | B5: 190 | C5: 140
A6: May | B6: 150 | C6: 110
A7: Jun | B7: 230 | C7: 180

Sheet C(9)
B2: Bellen | C2: Carlota | D2: Sunshine | E2: Aspen | F2: Sunset | G2: Quad
A3: Day 1 | B3: 141 | C3: 179 | D3: 188 | E3: 196 | F3: 200 | G3: 174
A4: Day 2 | B4: 174 | C4: 155 | D4: 129 | E4: 123 | F4: 129 | G4: 189
A5: Day 3 | B5: 177 | C5: 163 | D5: 160 | E5: 136 | F5: 178 | G5: 190
A6: Day 4 | B6: 168 | C6: 182 | D6: 121 | E6: 175 | F6: 171 | G6: 168
A7: Day 5 | B7: 121 | C7: 178 | D7: 197 | E7: 175 | F7: 194 | G7: 144
B10: Bellen | C10: Carlota | D10: Sunshine | E10: Aspen | F10: Sunset | G10: Quad
A11: Day 1 | B11: 141 | C11: 179 | D11: 188 | E11: 196 | F11: 200 | G11: 174
A12: Day 2 | B12: 174 | C12: 155 | D12: 129 | E12: 123 | F12: 129 | G12: 189
A13: Day 3 | B13: 177 | C13: 163 | D13: 160 | E13: 136 | F13: 178 | G13: 190
A14: Day 4 | B14: 168 | C14: 182 | D14: 121 | E14: 175 | F14: 171 | G14: 168
A15: Day 5 | B15: 121 | C15: 178 | D15: 197 | E15: 175 | F15: 194 | G15: 144
